Cogmind - Beta 17.1 @@@ ROGUE MODE // 2026.09.01 @ 11:42:48 Player: Clog Result: Destroyed by S-43 Plague with Heavy Machine Gun Performance ------------- Evolutions (6) 3000 Regions Visited (21) 4200 Robots Destroyed (197) 985 Value Destroyed (6545) 6545 Prototype IDs (43) 860 Alien Tech Used (0) 0 Bonus (3990) 3990 TOTAL SCORE: 19580 Bonus ------- High Alert Combat Kills 407 Follower Combat Kills 1982 Awakened Behemoth Slayer 1000 Network Hubs Disabled 200 Met Imprinter 300 Was Imprinted 300 Met Warlord at Base 500 MAIN.C Attacked Warlord 500 Friendly Fire -1199 Cogmind --------- Core Integrity 0/1150 Matter 290/300 Energy 25/100 System Corruption 3% Temperature Cool (0) Movement Core (200) Ox3 Location -3/Proximity Caves Parts ------- > --- POWER (2) -------- (None) > --- PROPULSION (6) --- (None) > --- UTILITY (8) ------ Improved Signal Interpreter > --- WEAPON (3) ------- RU-N14's Throwing Claymores v3 > --- INVENTORY (5) ---- Powered Armor Quantum Rifle Improved Remote Datajack RU-N14's Throwing Claymores v3 (4) CR-A16's Behemoth Slayer Peak State ------------ > --- POWER ------------ Backup Power III Micro Fission Core > --- PROPULSION ------- Centrium Wheel Centrium Wheel Antigrav System Gyrokinetic Inverter Gyrokinetic Inverter Improved Antigrav System > --- UTILITY ---------- Advanced Cooling System Medium Storage Unit Improved Signal Interpreter Advanced Targeting Computer ECM Suite Advanced Reaction Control System Centrium Medium Armor Plating > --- WEAPON ----------- Quantum Rifle KE Penetrator RU-N14's Throwing Claymores v3 > --- INVENTORY -------- Powered Armor Quantum Rifle Hardcell Cannon Improved Remote Datajack Improved Plasma Cutter RU-N14's Throwing Claymores v3 RU-N14's Throwing Claymores v3 RU-N14's Throwing Claymores v3 CR-A16's Behemoth Slayer [Rating: 107] Favorites ----------- Power Light Nuclear Core Engine Light Ion Engine Power Core Light Nuclear Core Reactor Zionite Light DM Reactor Propulsion Gravmag System Treads Light Treads Wheel Wheel Hover Unit Gravmag System Utility Medium Storage Unit Device Improved Sensor Array Storage Medium Storage Unit Processor Improved Signal Interpreter Hackware Improved Hacking Suite Protection Centrium Medium Armor Plating Weapon Enhanced Autogun Energy Gun Improved Spread Laser Energy Cannon Heavy Plasma Cannon Ballistic Gun Enhanced Autogun Ballistic Cannon Magnetic Acceleration Cannon Launcher Missile Launcher Special Weapon Remote Datajack Impact Weapon Makeshift Hammer Slashing Weapon Phasing Sabre Piercing Weapon CR-A16's Behemoth Slayer Special Melee Weapon Advanced Datajack Build | -11 -10 -10 -8 -7 -7 -7 -7 -7 -7 -6 -6 -6 -6 -6 -6 -5 -4 -4 -4 -4 -3 ------- Run | Yrd Mat Sub Mat Fac Was Fac Low Low Zio Pro Fac Ext Cet Arc Hub Fac Fac Upp Upp War Pro Slots Evolved 12 | . . . 4 2 . . . . . . 2 . . . . 2 2 . . . . Power 1 | . . . . . . . . . . . . . . . . 1 . . . . . Propulsion 4 | . . . 2 1 . . . . . . . . . . . . 1 . . . . Utility 6 | . . . 2 . . . . . . . 2 . . . . 1 1 . . . . Weapon 1 | . . . . 1 . . . . . . . . . . . . . . . . . Parts Attached 177 | 7 3 9 20 29 . 1 3 . 2 5 10 17 4 9 3 29 5 3 9 3 6 Power 19 | 1 . 1 3 2 . . . . . 1 2 1 1 1 . 2 1 . 3 . . Engine 7 | 1 . 1 3 . . . . . . . 1 . . 1 . . . . . . . Core 11 | . . . . 2 . . . . . 1 1 1 1 . . 1 1 . 3 . . Reactor 1 | . . . . . . . . . . . . . . . . 1 . . . . . Propulsion 57 | 2 . 2 6 11 . 1 1 . . 2 4 9 2 2 . 10 . 2 1 . 2 Treads 9 | 2 . . 4 3 . . . . . . . . . . . . . . . . . Leg . | . . . . . . . . . . . . . . . . . . . . . . Wheel 6 | . . 2 2 . . . . . . . . . . . . . . 1 . . 1 Hover 42 | . . . . 8 . 1 1 . . 2 4 9 2 2 . 10 . 1 1 . 1 Flight . | . . . . . . . . . . . . . . . . . . . . . . Utility 50 | 2 1 2 5 6 . . . . 1 1 4 3 1 4 2 10 3 . 2 2 1 Device 20 | 1 . 1 1 2 . . . . 1 . 2 . . . . 7 3 . 1 1 . Storage 4 | 1 1 . . 1 . . . . . . . . . . . 1 . . . . . Processor 9 | . . . 1 1 . . . . . . 1 2 . . . 2 . . 1 . 1 Hackware 4 | . . . . . . . . . . . . . . 4 . . . . . . . Protection 13 | . . 1 3 2 . . . . . 1 1 1 1 . 2 . . . . 1 . Artifact . | . . . . . . . . . . . . . . . . . . . . . . Weapon 51 | 2 2 4 6 10 . . 2 . 1 1 . 4 . 2 1 7 1 1 3 1 3 Energy Gun 12 | 1 1 . 1 2 . . . . . . . 1 . 1 . 3 . . 2 . . Energy Cannon 2 | . . . . 1 . . . . . . . 1 . . . . . . . . . Ballistic Gun 16 | 1 . 2 4 4 . . 1 . . . . . . . 1 1 1 . 1 . . Ballistic Cannon 4 | . . . . . . . . . . . . 1 . . . 2 . 1 . . . Launcher 4 | . 1 . . 1 . . 1 . . . . . . . . 1 . . . . . Special Weapon 6 | . . 1 . 1 . . . . . . . . . . . . . . . 1 3 Impact Weapon 1 | . . 1 . . . . . . . . . . . . . . . . . . . Slashing Weapon 3 | . . . 1 1 . . . . 1 . . . . . . . . . . . . Piercing Weapon 2 | . . . . . . . . . . 1 . 1 . . . . . . . . . Special Melee Weapon 1 | . . . . . . . . . . . . . . 1 . . . . . . . Unidentified Prototypes 15 | . . . 1 3 . . . . 1 . . 2 1 . 2 3 . . . 2 . Corrupted Parts 2 | . . . . . . . . . . . . . . . . 2 . . . . . System Corruption 14 | . . . . . . . . . . . . . . . . 14 . . . . . Parts Lost 94 | . 3 2 13 3 . . . . . 8 5 3 4 4 2 18 5 3 4 . 17 Power 15 | . 1 . 3 . . . . . . 1 1 . 1 1 . 2 1 1 1 . 2 Propulsion 35 | . . 1 4 . . . . . . 5 2 2 3 1 . 9 2 . . . 6 Utility 25 | . 1 . 1 1 . . . . . 1 2 1 . 2 1 5 1 1 2 . 6 Weapon 19 | . 1 1 5 2 . . . . . 1 . . . . 1 2 1 1 1 . 3 Highest Loss Streak 16 | . 3 1 8 1 . . . . . 6 2 1 2 4 2 8 3 2 4 . 16 To Critical Strikes 3 | . . . 1 . . . . . . . . . 1 . . . . . . . 1 Average Backups 9 | 3 4 4 13 15 10 10 10 10 9 8 8 9 9 9 9 6 10 9 9 10 9 Power . | . 1 . 1 1 1 1 1 1 1 . . 1 1 1 1 . . . . . . Propulsion 1 | 1 2 1 3 5 3 3 2 2 2 . . 1 1 1 2 . . . . . . Utility 1 | . . . . 1 2 2 2 3 2 2 1 2 2 1 1 . 2 2 2 1 1 Weapon 4 | . 1 2 7 6 3 3 3 3 3 4 4 3 4 4 3 4 7 6 6 6 6 Tool/Special . | . . . . . . . . . . . . . . . . . . . . . . Unused Backups 26 | 2 . 1 3 8 . . 1 . 1 . . 1 . . 3 1 . . . 3 2 Power 3 | . . . . . . . . . . . . 1 . . 2 . . . . . . Propulsion 6 | 1 . . 1 2 . . 1 . . . . . . . 1 . . . . . . Utility 4 | . . . . 1 . . . . 1 . . . . . . 1 . . . 1 . Weapon 11 | 1 . 1 2 4 . . . . . . . . . . . . . . . 2 1 Tool/Special 2 | . . . . 1 . . . . . . . . . . . . . . . . 1 Average Slot Usage (%) 83 | . 87 85 85 90 100 100 100 100 99 77 54 88 91 84 99 79 75 68 60 73 71 Engine 2 | . 8 14 7 . . . . . . . 2 . . 3 6 1 . . . 3 3 Core 4 | . . . . 6 7 7 7 7 7 6 1 6 5 . . 1 1 5 5 5 4 Treads 5 | . 27 7 8 19 . . . . . . . . . . . . . . . . . Wheel 3 | . . 20 20 . . . . . . . . . . . . . . . 5 5 6 Hover 18 | . . . . 17 38 38 38 38 38 22 18 30 26 27 33 21 17 14 17 21 16 Device 7 | . 8 . 6 3 7 7 7 7 7 7 4 6 6 . . 9 20 21 15 11 12 Storage 6 | . 14 5 9 7 7 7 7 7 7 7 6 6 6 6 5 3 5 5 5 5 4 Processor 6 | . . . 8 7 7 7 7 7 7 7 6 11 20 8 . 5 5 4 4 5 9 Hackware 1 | . . . . . . . . . . . . . . 10 26 6 . . . . . Protection 5 | . . 8 7 2 7 7 7 7 6 2 5 5 6 6 6 6 5 5 2 5 4 Energy Gun 5 | . 13 11 2 5 7 7 7 7 7 6 . . . 6 12 4 3 . 2 8 3 Ballistic Gun 7 | . 13 14 14 11 7 7 7 7 7 6 1 6 1 . . . 1 5 1 1 3 Slashing Weapon 3 | . . . . 2 7 7 6 7 7 5 4 3 5 6 6 4 4 4 . . . Peak Build Rating 107 | 7 7 13 25 48 48 49 49 49 54 51 45 71 69 82 84 90 87 79 87 97 107 Average Rating 45 | 5 6 10 18 36 48 48 48 49 49 39 32 55 64 66 81 74 80 72 63 82 76 On Entrance 49 | . 7 6 11 21 48 48 49 49 49 51 22 42 69 63 82 83 81 66 71 78 88 Avg Prop Armor Cover (%) 3 | . . . . . . . . . . . . . . . . . . 3 5 3 4 Naked Turns . | . . . . . . . . . . . . . . . . . . . . . . Heaviest Build 61 | 12 47 53 60 61 34 34 34 34 35 37 30 48 48 39 45 60 57 44 41 50 49 Greatest Support 102 | 40 40 40 82 102 45 46 46 46 46 46 39 57 57 58 58 60 50 33 44 44 45 Greatest Overweight (x) 3 | . 2 2 2 . . . . . . 1 1 1 1 . . 2 2 1 1 1 3 Average Overweight (x) . | . . 1 . . . . . . . . . . . . . . . 1 . . . Largest Inventory Capacity 20 | 8 20 20 20 20 10 10 10 10 10 10 10 10 10 10 10 10 10 10 10 10 10 Average Capacity 11 | 7 19 10 20 15 10 10 10 10 10 10 10 10 10 10 9 8 10 10 10 10 9 Most Carried 20 | 5 7 7 20 20 10 10 10 10 10 10 10 10 10 10 10 10 10 10 10 10 10 Average Carried 9 | 3 4 4 13 15 10 10 9 10 9 8 8 9 9 9 9 6 9 9 9 9 9 Final Capacity 20 | 8 20 20 20 10 10 10 10 10 10 10 10 10 10 10 5 10 10 10 10 10 5 Final Carried 17 | 4 5 6 17 10 10 10 10 10 10 9 10 10 9 9 5 10 10 10 10 10 5 Class Distribution -------------------- 48% | Mutant 24% | Scavenger-Mutant 9% | Messiah-Mutant 6% | Scavenger-Gunner 3% | Messiah-Scout Dominant Class ---------------- Mutant | -10/Materials Mutant | -10/Subcaves Scavenger-Mutant | -8/Materials Scavenger-Gunner | -7/Factory Mutant | -7/Waste Mutant | -7/Factory Mutant | -7/Lower Caves Mutant | -7/Lower Caves Mutant | -7/Zion Mutant | -6/Proximity Caves Mutant | -6/Factory Scavenger-Skirmisher | -6/Extension Messiah-Scout | -6/Cetus Messiah-Mutant | -6/Archives Messiah-Mutant | -6/Hub_04(d) Messiah-Mutant | -5/Factory Messiah-Mutant | -4/Factory Scavenger-Mutant | -4/Upper Caves Scavenger-Mutant | -4/Upper Caves Scavenger-Mutant | -4/Warlord Scavenger-Mutant | -3/Proximity Caves Resources | -11 -10 -10 -8 -7 -7 -7 -7 -7 -7 -6 -6 -6 -6 -6 -6 -5 -4 -4 -4 -4 -3 ----------- Run | Yrd Mat Sub Mat Fac Was Fac Low Low Zio Pro Fac Ext Cet Arc Hub Fac Fac Upp Upp War Pro Matter Collected 5482 | 290 152 236 685 845 . . 397 6 35 264 460 951 102 120 45 362 167 85 125 47 108 Remotely . | . . . . . . . . . . . . . . . . . . . . . . Salvage Created 7101 | 170 154 188 1321 860 . . 177 . . 251 626 795 88 236 642 730 272 52 125 . 414 Parts 416 | 18 17 16 80 48 . . 12 . . 16 37 47 2 17 31 26 20 2 3 . 24 Haulers Intercepted 9 | . . . 3 2 . . . . . . 1 1 . . 1 1 . . . . . Recyclers Shooed 7 | . . . 2 . . . . . . . 3 1 . . . 1 . . . . . Parts Field Recycled . | . . . . . . . . . . . . . . . . . . . . . . Retrieved Matter . | . . . . . . . . . . . . . . . . . . . . . . Parts Self-Destructed 70 | . . 8 . . . . 11 . . 18 . . . . . . . 1 7 . 25 Prevented 5 | . . . . . . . . . . 5 . . . . . . . . . . . Parts Restored . | . . . . . . . . . . . . . . . . . . . . . . Kills | -11 -10 -10 -8 -7 -7 -7 -7 -7 -7 -6 -6 -6 -6 -6 -6 -5 -4 -4 -4 -4 -3 ------- Run | Yrd Mat Sub Mat Fac Was Fac Low Low Zio Pro Fac Ext Cet Arc Hub Fac Fac Upp Upp War Pro Combat Hostiles Destroyed 134 | . 8 8 23 9 . . 6 . . 13 11 17 1 . 3 12 6 1 1 . 15 Melee 7 | . . . . . . . . . . . 1 . . . 1 5 . . . . . Guns 60 | . 6 5 21 9 . . 4 . . 2 2 3 . . 2 1 1 1 . . 3 Cannons 8 | . . . . . . . . . . . . 1 1 . . 4 . . . . 2 AOE 52 | . 2 3 2 . . . 2 . . 10 8 12 . . . . 4 . . . 9 Classes Destroyed 20 | 2 3 1 6 2 . . . . . 2 . 1 1 . 2 . . . . . . Worker 6 | . . . 1 1 . . . . . . 1 . . . 3 . . . . . . Builder 10 | . 1 . 3 1 . . . . . . . 2 . . 2 . 1 . . . . Tunneler 5 | 5 . . . . . . . . . . . . . . . . . . . . . Hauler 9 | . . . 3 2 . . . . . . 1 1 . . 1 1 . . . . . Recycler 8 | 1 . . 1 2 . . . . . . 2 1 . . 1 . . . . . . Mechanic 2 | . . . . 1 . . . . . . . . . . . . . . . . 1 Operator 12 | . . . . . . . . . . . . 5 . 7 . . . . . . . Drone 1 | . . . . . . . . . . 1 . . . . . . . . . . . Watcher 6 | . . . 2 2 . . . . . . 1 . 1 . . . . . . . . Swarmer 58 | . 6 4 4 . . . 4 . . 8 7 8 . . . 3 5 . . . 9 Grunt 37 | . 2 . 11 5 . . . . . 2 2 7 . . 2 4 . . . . 2 Brawler 2 | . . . 1 . . . . . . . . . . . . . . . . . 1 Duelist 2 | . . . 1 . . . . . . . . 1 . . . . . . . . . Sentry 11 | . . . 6 2 . . 1 . . 1 1 . . . . . . . . . . Hunter 3 | . . . . . . . . . . . . . 1 . . 2 . . . . . Programmer 10 | . . . . 2 . . 1 . . . 1 . . . 1 2 . 1 . . 2 Behemoth 6 | . . . . . . . . . . 1 . 1 . . . 1 1 . 1 . 1 Subdweller 4 | . . 4 . . . . . . . . . . . . . . . . . . . Z-Heavy 3 | . . . . . . . . . . . . . . . 3 . . . . . . Thug 1 | . . . . . . . . . . . . . . . 1 . . . . . . Martyr 1 | . . . . . . . . . . . . . . . 1 . . . . . . Best Kill Streak 9 | 3 5 4 7 3 . . 4 . . 3 6 7 1 7 5 3 7 1 1 . 9 Combat Bots Only 8 | . 4 4 6 3 . . 4 . . 3 5 5 1 . 2 3 6 1 1 . 8 Max Kills in Single Turn 8 | 1 2 3 3 2 . . 2 . . 3 3 3 1 1 8 1 4 1 1 . 3 Gunslinging 1 | . . . 1 1 . . . . . . . . . . 1 . . . . . . Exploded 3 | . 1 3 2 . . . 2 . . 3 3 3 . . . . 3 . . . 3 Melee 1 | . . . . . . . . . . . 1 . . . 1 1 . . . . . Uniques/NPCs Destroyed . | . . . . . . . . . . . . . . . . . . . . . . Combat | -11 -10 -10 -8 -7 -7 -7 -7 -7 -7 -6 -6 -6 -6 -6 -6 -5 -4 -4 -4 -4 -3 -------- Run | Yrd Mat Sub Mat Fac Was Fac Low Low Zio Pro Fac Ext Cet Arc Hub Fac Fac Upp Upp War Pro Hostile Shots Fired 1308 | . 47 73 177 60 . . 27 . . 69 163 75 28 31 5 229 24 56 64 30 150 Missed 494 | . 13 28 59 21 . . 11 . . 30 71 31 19 19 2 66 7 22 28 15 52 Hits 814 | . 34 45 118 39 . . 16 . . 39 92 44 9 12 3 163 17 34 36 15 98 Melee 5 | . . . . . . . . . . . . . . . 1 . . . . . 4 Projectile 809 | . 34 45 118 39 . . 16 . . 39 92 44 9 12 2 163 17 34 36 15 94 AOE 1 | . . . . . . . . . . . . . . . . . . . . . 1 Critical Strikes 29 | . 1 . 7 2 . . 1 . . 1 . 1 2 . . 6 1 1 2 . 4 Part Disruptions 1 | . . . . . . . . . . . . . . . . . . . 1 . . Damage Taken 13133 | . 391 471 1953 549 . . 278 . . 662 857 712 246 296 225 2496 363 464 548 264 2358 Core 2564 | . 96 47 339 92 . . 29 . . 48 228 63 . . 4 449 . 20 142 . 1007 Absorbed by Shields 84 | . . . . . . . . . . . . . . . . 84 . . . . . Regen/Repaired (Parts) 837 | . . . . . . . . . . . . . . . . 554 37 . . 246 . Core Remaining (%) 62 | 100 . 42 38 . . . . . . 75 . . . . 65 55 . . . . . Volleys Fired 439 | 14 23 22 83 49 . . 21 . . 23 21 77 15 4 12 35 10 8 4 . 18 Largest 3 | 2 2 2 2 3 . . 3 . . 2 2 2 1 1 2 2 1 1 2 . 2 Hottest 171 | 60 85 100 90 108 . . 125 . . 100 50 90 90 90 141 171 46 55 68 . 127 Shots Fired 678 | 28 31 37 148 113 . . 31 . . 28 36 81 15 4 23 49 10 9 6 . 29 Gun 506 | 28 27 30 146 112 . . 30 . . 15 30 8 . . 22 17 8 6 6 . 21 Cannon 97 | . . . . . . . . . . . . 44 15 2 1 32 . 3 . . . Launcher 51 | . 4 1 2 . . . 1 . . 13 4 24 . . . . 2 . . . . Special 24 | . . 6 . 1 . . . . . . 2 5 . 2 . . . . . . 8 Kinetic 430 | 14 19 18 137 82 . . 23 . . 10 30 46 7 . . 11 8 9 6 . 10 Thermal 179 | 14 8 18 9 30 . . 7 . . 5 . 6 8 2 23 38 . . . . 11 Explosive 57 | . 4 1 2 . . . 1 . . 13 4 24 . . . . . . . . 8 Electromagnetic 2 | . . . . . . . . . . . . . . . . . 2 . . . . Robot Hit Streak 15 | 5 7 15 11 12 . . 11 . . 8 10 7 5 7 5 6 6 5 2 . 11 Robot Miss Streak 12 | 4 2 1 4 5 . . 4 . . 12 4 8 2 1 2 4 4 2 2 . 2 Penetration Max 1 | . . . . . . . . . . . . . . . . . . . . . 1 Secondary Targets 11 | . . . 5 1 . . 1 . . . 1 . . . 1 . . . . . 2 Max Gunslinging Chain 1 | . . . 1 1 . . 1 . . . 1 . . . 1 . . . . . 1 Shots Hit Robots 474 | 15 18 24 101 70 . . 24 . . 21 38 47 10 13 17 40 8 5 4 . 19 Core Hits 293 | 7 12 12 53 36 . . 15 . . 26 19 35 4 7 16 15 7 2 1 . 26 Critical Kills 5 | . . . 2 2 . . . . . . . . . . . 1 . . . . . Critical Parts Destroyed 2 | . . . 2 . . . . . . . . . . . . . . . . . . Critical Strikes 17 | . . 1 4 2 . . . . . . . 2 . . 1 5 . . . . 2 Burn 2 | . . 1 . . . . . . . . . . . . 1 . . . . . . Meltdown 1 | . . . . . . . . . . . . . . . . 1 . . . . . Destroy 6 | . . . 4 2 . . . . . . . . . . . . . . . . . Blast 1 | . . . . . . . . . . . . 1 . . . . . . . . . Sever 7 | . . . . . . . . . . . . 1 . . . 4 . . . . 2 Melee Attacks 197 | . . 6 15 42 . . . . 1 9 22 26 1 11 5 36 16 4 1 . 2 Impact 17 | . . 6 10 1 . . . . . . . . . . . . . . . . . Slashing 165 | . . . 5 41 . . . . 1 2 22 25 1 11 5 33 15 4 . . . Piercing 14 | . . . . . . . . . . 7 . 1 . . . 2 1 . 1 . 2 Sneak Attacks 31 | . . . . 4 . . . . . . 7 7 . 8 1 4 . . . . . Combat Hostiles 1 | . . . . . . . . . . . . . . . . 1 . . . . . Follow-up Attacks . | . . . . . . . . . . . . . . . . . . . . . . Damage Inflicted 20841 | 180 368 508 2307 1532 . . 522 . . 1349 2323 3025 317 973 1688 1643 664 151 81 . 3210 Guns 6257 | 180 214 368 2051 1170 . . 425 . . 141 308 55 . . 353 123 124 151 81 . 513 Cannons 1498 | . . . . . . . . . . . . 518 277 65 . 638 . . . . . Explosions 8165 | . 140 140 197 . . . 97 . . 1046 1011 1460 . . 1164 . 491 . . . 2419 Melee 4617 | . . . 47 362 . . . . . 162 1004 992 40 908 171 882 49 . . . . Ramming 26 | . 14 . 12 . . . . . . . . . . . . . . . . . . Kinetic 5211 | 73 142 230 1904 613 . . 336 . . 99 308 573 88 . . 216 124 151 81 . 273 Thermal 2993 | 107 72 138 147 557 . . 89 . . 42 449 . 189 65 353 545 . . . . 240 Explosive 6414 | . 140 140 197 . . . 97 . . 1046 562 1460 . . . . 353 . . . 2419 Electromagnetic 1302 | . . . . . . . . . . . . . . . 1164 . 138 . . . . Impact 47 | . . . 47 . . . . . . . . . . . . . . . . . . Slashing 4686 | . . . . 362 . . . . . . 1004 992 40 908 171 882 49 . . . 278 Piercing 162 | . . . . . . . . . . 162 . . . . . . . . . . . Highest Corruption 20 | . . . . 4 11 11 11 11 11 . . . . . . 20 2 3 5 5 3 Average Corruption 4 | . . . . 3 8 11 11 11 11 . . . . . . 3 1 2 4 5 2 Corruption Purged . | . . . . . . . . . . . . . . . . . . . . . . Corruption Blocked . | . . . . . . . . . . . . . . . . . . . . . . Effects 100 | . . . . 20 2 2 23 8 1 . . . . . . 20 1 17 5 . 1 Message Errors 18 | . . . . 2 . 1 6 2 . . . . . . . 3 . 4 . . . Matter Fused 25 | . . . . 6 . 1 4 1 1 . . . . . . 4 1 4 3 . . Heat Flow Errors 17 | . . . . 2 . . 2 1 . . . . . . . 5 . 5 1 . 1 Energy Discharges 16 | . . . . 5 . . 4 3 . . . . . . . 3 . . 1 . . Parts Fused 1 | . . . . . . . 1 . . . . . . . . . . . . . . Data Loss (minor) 10 | . . . . 2 1 . 2 1 . . . . . . . 2 . 2 . . . Data Loss (major) 3 | . . . . . . . 1 . . . . . . . . 1 . 1 . . . Misfires 2 | . . . . . . . . . . . . . . . . 1 . 1 . . . Alerts 5 | . . . . 3 . . 2 . . . . . . . . . . . . . . Misdirections 3 | . . . . . 1 . 1 . . . . . . . . 1 . . . . . Overload Shots . | . . . . . . . . . . . . . . . . . . . . . . Overflow Damage 1436 | . . . 12 72 . . . . . . 340 392 . 96 146 228 27 . . . 123 Projectiles 58 | . . . . . . . . . . . . 26 . . . 32 . . . . . Explosions 392 | . . . . . . . . . . . 116 52 . . 74 . 27 . . . 123 Melee 986 | . . . 12 72 . . . . . . 224 314 . 96 72 196 . . . . . Knockbacks 9 | . . . . . . . . . . . . 2 . . . 7 . . . . . Impact . | . . . . . . . . . . . . . . . . . . . . . . Kinetic 8 | . . . . . . . . . . . . 2 . . . 6 . . . . . Secondary 1 | . . . . . . . . . . . . . . . . 1 . . . . . Self-Inflicted Damage 154 | . . 8 . . . . . . . . . 37 . . 97 . 12 . . . . Shots 6 | . . 1 . . . . . . . . . 3 . . 1 . 1 . . . . Rammed 2 | . 1 . 1 . . . . . . . . . . . . . . . . . . Targets Rammed 2 | . 1 . 1 . . . . . . . . . . . . . . . . . . Kicked . | . . . . . . . . . . . . . . . . . . . . . . Crushed . | . . . . . . . . . . . . . . . . . . . . . . Highest Temperature 397 | . 13 21 159 284 . . 298 289 . 181 16 192 174 42 276 397 48 245 164 3 227 Average Temperature 80 | . 6 15 36 105 . . 94 143 . 58 7 32 82 25 112 134 22 94 87 1 64 Received Heat Transfer 2498 | . 159 174 927 186 . . 27 . . 129 57 198 . 45 . 222 18 9 . . 347 Effects 7 | . . . . 1 . . . 2 . . . . . . . 4 . . . . . Energy Bleed 3 | . . . . 1 . . . . . . . . . . . 2 . . . . . Interference 4 | . . . . . . . . 2 . . . . . . . 2 . . . . . Siege Activations . | . . . . . . . . . . . . . . . . . . . . . . Martial Activations . | . . . . . . . . . . . . . . . . . . . . . . Shielding Activations . | . . . . . . . . . . . . . . . . . . . . . . Robots Disrupted . | . . . . . . . . . . . . . . . . . . . . . . Combat Hostiles . | . . . . . . . . . . . . . . . . . . . . . . Robots Corrupted 3 | . . . 1 . . . . . . . . . . . 2 . . . . . . Combat Hostiles . | . . . . . . . . . . . . . . . . . . . . . . Parts Fried 9 | . . . 1 . . . . . . . . . . . 8 . . . . . . Impact Corruptions 1 | . . . 1 . . . . . . . . . . . . . . . . . . Robots Melted 1 | . . . . . . . . . . . . . . . . 1 . . . . . Combat Hostiles 1 | . . . . . . . . . . . . . . . . 1 . . . . . Parts Melted 7 | . 1 1 . . . . . . . . . . 1 . . 3 . . . . 1 Heat Transferred 4025 | 250 162 407 175 640 . . 70 . . 35 250 . 300 100 592 785 . . . . 259 Parts Sabotaged . | . . . . . . . . . . . . . . . . . . . . . . Parts Stolen . | . . . . . . . . . . . . . . . . . . . . . . Parts Stripped . | . . . . . . . . . . . . . . . . . . . . . . Power Chain Reactions . | . . . . . . . . . . . . . . . . . . . . . . Alert | -11 -10 -10 -8 -7 -7 -7 -7 -7 -7 -6 -6 -6 -6 -6 -6 -5 -4 -4 -4 -4 -3 ------- Run | Yrd Mat Sub Mat Fac Was Fac Low Low Zio Pro Fac Ext Cet Arc Hub Fac Fac Upp Upp War Pro Maximum Alert Level 3 | . . . 1 . . . . . . . 3 3 2 1 3 1 . . . . . Low Security (%) 57 | 100 100 . 54 100 100 100 . . . . . . . . 69 27 100 . . . . Level 1 19 | . . . 45 . . . . . . . . 3 . 100 5 72 . . . . . Level 2 19 | . . . . . . . . . . . 77 86 100 . 17 . . . . . . Level 3 3 | . . . . . . . . . . . 22 9 . . 7 . . . . . . Level 4 . | . . . . . . . . . . . . . . . . . . . . . . Level 5 . | . . . . . . . . . . . . . . . . . . . . . . High Security . | . . . . . . . . . . . . . . . . . . . . . . Max Security . | . . . . . . . . . . . . . . . . . . . . . . Peak Influence 1002 | 10 158 . 356 144 44 16 . . . . 826 1002 638 327 755 374 189 . . . . Initial 616 | . . . . 133 44 16 . . . . 616 400 554 247 100 364 90 . . . . Average 239 | 1 68 . 211 67 35 7 . . . . 626 579 601 299 246 248 95 . . . . Influence Increases 7971 | 30 258 230 748 482 . . 425 . . 543 1212 1290 204 172 785 659 263 90 60 135 385 Destroy 0b10 Robot/C 3540 | . 160 80 460 180 . . 120 . . 320 320 660 120 80 260 320 120 20 20 . 300 Destroy 0b10 Robot/NC 360 | 30 5 . 50 45 . . . . . 10 45 60 5 40 50 10 5 . . . 5 Destroy Leader 634 | . 30 . 130 58 . . 20 . . 40 74 94 10 . 54 64 20 10 10 . 20 Allied During Kill 780 | . . . . . . . . . . 98 56 300 58 36 199 33 . . . . . Successful Hack 64 | . . . 9 11 . . . . . . . 7 3 . . 8 26 . . . . Disable Machine 330 | . . . 45 15 . . . . . . 45 15 . 15 60 105 30 . . . . Destroy Structure 553 | . 18 . 39 38 . . . . . . 42 139 8 1 162 44 62 . . . . Advance Influence 600 | . . . . . . . . . . . 600 . . . . . . . . . . Partial Spotted 75 | . . . . 60 . . . . . . . 15 . . . . . . . . . Lose Combat Pursuer 1035 | . 45 150 15 75 . . 285 . . 75 30 . . . . 75 . 60 30 135 60 Influence Decreases 7836 | 30 166 322 453 650 103 24 278 129 18 517 420 1118 576 501 329 1219 305 233 20 64 361 Entered New Map 2449 | . . 45 . 162 83 8 . 29 18 . 10 418 436 371 189 381 95 53 . 40 111 Time Decay 3810 | 30 136 267 323 467 20 16 278 100 . 357 230 410 60 90 100 458 160 164 20 24 100 Search Patrol Dispatched 100 | . . . . . . . . . . . 100 . . . . . . . . . . Lost Part 847 | . 30 10 130 21 . . . . . 80 50 30 40 40 20 180 50 16 . . 150 Lost Ally 630 | . . . . . . . . . . 80 30 260 40 . 20 200 . . . . . Squads Dispatched 36 | . . . 3 8 . 1 . . . . 2 7 1 . 5 6 2 . . . 1 Investigation 11 | . . . . 2 . 1 . . . . . 5 1 . 1 1 . . . . . Extermination 8 | . . . . 4 . . . . . . 1 . . . 1 2 . . . . . Reinforcement 14 | . . . 2 2 . . . . . . 1 2 . . 3 2 2 . . . . Assault 1 | . . . . . . . . . . . . . . . . . . . . . 1 Garrison 2 | . . . 1 . . . . . . . . . . . . 1 . . . . . Intercept . | . . . . . . . . . . . . . . . . . . . . . . Searches Triggered 1 | . . . . . . . . . . . 1 . . . . . . . . . . Construction Impeded 2 | . . . 2 . . . . . . . . . . . . . . . . . . Haulers Reinforced 5 | . . . . 1 . . . . . . . . . . 2 1 1 . . . . Active Scanning Responses . | . . . . . . . . . . . . . . . . . . . . . . Cargo Convoy Interrupts . | . . . . . . . . . . . . . . . . . . . . . . Stealth | -11 -10 -10 -8 -7 -7 -7 -7 -7 -7 -6 -6 -6 -6 -6 -6 -5 -4 -4 -4 -4 -3 --------- Run | Yrd Mat Sub Mat Fac Was Fac Low Low Zio Pro Fac Ext Cet Arc Hub Fac Fac Upp Upp War Pro Distress Signals 14 | . 3 . 4 . . . . . . . . 1 1 . 3 1 1 . . . . Communications Jammed . | . . . . . . . . . . . . . . . . . . . . . . Distress Signals . | . . . . . . . . . . . . . . . . . . . . . . Times Spotted 341 | . 13 12 35 22 6 . 19 . . 21 19 41 7 5 18 34 18 7 6 19 39 Peak Tracking Total 22 | . 5 4 8 4 6 . 10 . . 4 5 4 5 3 7 10 8 6 3 17 22 Tactical Retreats 36 | . 2 3 1 2 . . 7 . . 2 2 . . . . 6 3 3 1 2 2 ECM-based Alert Blocks 8 | . . . . . . . . . . . . . . . . 1 7 . . . . Traps | -11 -10 -10 -8 -7 -7 -7 -7 -7 -7 -6 -6 -6 -6 -6 -6 -5 -4 -4 -4 -4 -3 ------- Run | Yrd Mat Sub Mat Fac Was Fac Low Low Zio Pro Fac Ext Cet Arc Hub Fac Fac Upp Upp War Pro Traps Triggered 14 | . 4 . . 3 . . . . . . 2 2 . . . 3 . . . . . Indirectly . | . . . . . . . . . . . . . . . . . . . . . . Trap Hack Attempts . | . . . . . . . . . . . . . . . . . . . . . . Triggered . | . . . . . . . . . . . . . . . . . . . . . . Disarmed . | . . . . . . . . . . . . . . . . . . . . . . Reprogrammed . | . . . . . . . . . . . . . . . . . . . . . . Reused . | . . . . . . . . . . . . . . . . . . . . . . Traps Extracted . | . . . . . . . . . . . . . . . . . . . . . . Installed . | . . . . . . . . . . . . . . . . . . . . . . Triggered . | . . . . . . . . . . . . . . . . . . . . . . Machines | -11 -10 -10 -8 -7 -7 -7 -7 -7 -7 -6 -6 -6 -6 -6 -6 -5 -4 -4 -4 -4 -3 ---------- Run | Yrd Mat Sub Mat Fac Was Fac Low Low Zio Pro Fac Ext Cet Arc Hub Fac Fac Upp Upp War Pro Machines Disabled 27 | . . . 3 1 . . . . . . 3 5 . 1 4 7 2 . . . 1 Max in Single Turn 3 | . . . 1 1 . . . . . . 1 2 . . 3 1 1 . . . 1 Network Hub 1 | . . . . . . . . . . . . . . . 1 . . . . . . Machines Repaired . | . . . . . . . . . . . . . . . . . . . . . . Machines Dismantled . | . . . . . . . . . . . . . . . . . . . . . . Machines Sabotaged . | . . . . . . . . . . . . . . . . . . . . . . Overloaded Fab Kills . | . . . . . . . . . . . . . . . . . . . . . . Hacking | -11 -10 -10 -8 -7 -7 -7 -7 -7 -7 -6 -6 -6 -6 -6 -6 -5 -4 -4 -4 -4 -3 --------- Run | Yrd Mat Sub Mat Fac Was Fac Low Low Zio Pro Fac Ext Cet Arc Hub Fac Fac Upp Upp War Pro Machines Accessed 47 | . . . 3 13 . 1 . 1 . 1 . 3 2 1 . 7 1 . 1 12 1 Terminals 21 | . . . 2 10 . 1 . . . 1 . 3 2 . . 1 . . . . 1 Fabricators 2 | . . . . . . . . . . . . . . . . 2 . . . . . Repair Stations 3 | . . . . 1 . . . . . . . . . . . 1 1 . . . . Recycling Units 2 | . . . . . . . . . . . . . . . . 2 . . . . . Scanalyzers 2 | . . . 1 1 . . . . . . . . . . . . . . . . . Garrison Access 2 | . . . . 1 . . . . . . . . . . . 1 . . . . . Total Hacks 105 | . . . 7 33 . 3 . 1 . 1 . 8 5 2 . 18 3 . 1 22 1 Successful 52 | . . . 3 7 . . . 1 . 1 . 2 1 2 . 9 2 . 1 22 1 Failed 51 | . . . 3 25 . 3 . . . . . 6 4 . . 9 1 . . . . Catastrophic 13 | . . . 1 4 . 1 . . . . . 1 3 . . 3 . . . . . Database Lockouts 2 | . . . 1 1 . . . . . . . . . . . . . . . . . Manual 82 | . . . 4 20 . 3 . . 2 . 11 13 . . 7 16 6 . . . . Terminals 47 | . . . 4 21 . 3 . . . 1 . 8 5 . . 4 . . . . 1 Fabricators 6 | . . . . . . . . . . . . . . . . 6 . . . . . Repair Stations 7 | . . . . 2 . . . . . . . . . . . 2 3 . . . . Recycling Units 4 | . . . . . . . . . . . . . . . . 4 . . . . . Scanalyzers 10 | . . . 3 7 . . . . . . . . . . . . . . . . . Garrison Access 5 | . . . . 3 . . . . . . . . . . . 2 . . . . . Terminal Hacks 35 | . . . 1 2 . . . 1 . 1 . 2 1 2 . 1 . . 1 22 1 Record 17 | . . . . 1 . . . . . 1 . . 1 2 . . . . . 12 . Prototype ID Bank 8 | . . . . . . . . . . . . . . . . . . . . 8 . Open Door 7 | . . . . . . . . 1 . . . 2 . . . . . . 1 2 1 Open DSF 1 | . . . . . . . . . . . . . . . . 1 . . . . . Level Access Points 2 | . . . 1 1 . . . . . . . . . . . . . . . . . Fabricator Hacks 3 | . . . . . . . . . . . . . . . . 3 . . . . . Load Schematic 2 | . . . . . . . . . . . . . . . . 2 . . . . . Build 1 | . . . . . . . . . . . . . . . . 1 . . . . . Repair Station Hacks 5 | . . . . 1 . . . . . . . . . . . 2 2 . . . . Scan Component 3 | . . . . 1 . . . . . . . . . . . 1 1 . . . . Repair 2 | . . . . . . . . . . . . . . . . 1 1 . . . . Recycling Unit Hacks 2 | . . . . . . . . . . . . . . . . 2 . . . . . Report Inventory 1 | . . . . . . . . . . . . . . . . 1 . . . . . Retrieve Components 1 | . . . . . . . . . . . . . . . . 1 . . . . . Scanalyzer 5 | . . . 1 4 . . . . . . . . . . . . . . . . . Retrieve Study 5 | . . . 1 4 . . . . . . . . . . . . . . . . . Garrison Access Hacks . | . . . . . . . . . . . . . . . . . . . . . . Unauthorized Hacks 2 | . . . 1 . . . . . . . . . . . . 1 . . . . . Terminals 1 | . . . 1 . . . . . . . . . . . . . . . . . . Operators 1 | . . . 1 . . . . . . . . . . . . . . . . . . Fabricators . | . . . . . . . . . . . . . . . . . . . . . . Repair Stations . | . . . . . . . . . . . . . . . . . . . . . . Recycling Units 1 | . . . . . . . . . . . . . . . . 1 . . . . . Monitor 1 | . . . . . . . . . . . . . . . . 1 . . . . . Scanalyzers . | . . . . . . . . . . . . . . . . . . . . . . Garrison Access . | . . . . . . . . . . . . . . . . . . . . . . Data Cores Recovered 1 | . . . . . . . . . . . . 1 . . . . . . . . . Used . | . . . . . . . . . . . . . . . . . . . . . . Hacking Detections 25 | . . . . 13 . 1 . . . 1 . 3 2 . . 4 . . . . 1 Full Trace Events 7 | . . . . 2 . 1 . . . . . 2 1 . . 1 . . . . . Feedback Events . | . . . . . . . . . . . . . . . . . . . . . . Feedback Blocked . | . . . . . . . . . . . . . . . . . . . . . . Robot Schematics Acquired 4 | . . . . . . . . . 4 . . . . . . . . . . . . Robots Built . | . . . . . . . . . . . . . . . . . . . . . . Authchips . | . . . . . . . . . . . . . . . . . . . . . . Time . | . . . . . . . . . . . . . . . . . . . . . . Total Robot Build Rating . | . . . . . . . . . . . . . . . . . . . . . . Part Schematics Acquired 27 | . . . . . . . . . 15 . 12 . . . . . . . . . . Parts Built 1 | . . . . . . . . . . . . . . . . 1 . . . . . Authchips . | . . . . . . . . . . . . . . . . . . . . . . Time 152 | . . . . . . . . . . . . . . . . 152 . . . . . Total Part Build Rating 5 | . . . . . . . . . . . . . . . . 5 . . . . . Part Studies Acquired 5 | . . . 1 4 . . . . . . . . . . . . . . . . . Parts Repaired 2 | . . . . . . . . . . . . . . . . 1 1 . . . . Time 136 | . . . . . . . . . . . . . . . . 108 28 . . . . Parts Recycled . | . . . . . . . . . . . . . . . . . . . . . . Recycled Matter . | . . . . . . . . . . . . . . . . . . . . . . Retrieved Matter . | . . . . . . . . . . . . . . . . . . . . . . Retrieved Components 3 | . . . . . . . . . . . . . . . . 3 . . . . . Parts Scanalyzed . | . . . . . . . . . . . . . . . . . . . . . . Part Schematics Acquired . | . . . . . . . . . . . . . . . . . . . . . . Parts Damaged . | . . . . . . . . . . . . . . . . . . . . . . Bothacking | -11 -10 -10 -8 -7 -7 -7 -7 -7 -7 -6 -6 -6 -6 -6 -6 -5 -4 -4 -4 -4 -3 ------------ Run | Yrd Mat Sub Mat Fac Was Fac Low Low Zio Pro Fac Ext Cet Arc Hub Fac Fac Upp Upp War Pro Used RIF Installer . | . . . . . . . . . . . . . . . . . . . . . . Robots Hacked 4 | . . . . 1 . . . . . . 1 . . 1 . 1 . . . . . Non-combat 3 | . . . . 1 . . . . . . . . . 1 . 1 . . . . . Combat . | . . . . . . . . . . . . . . . . . . . . . . Robot Hacks Applied 3 | . . . . 1 . . . . . . . . . 1 . 1 . . . . . find_chute 2 | . . . . 1 . . . . . . . . . . . 1 . . . . . check_alert 1 | . . . . . . . . . . . . . . 1 . . . . . . . Manual 1 | . . . . . . . . . . . 1 . . . . . . . . . . Relay Couplers Released . | . . . . . . . . . . . . . . . . . . . . . . Fabnet Peak Effective % . | . . . . . . . . . . . . . . . . . . . . . . Robots Rewired 3 | . . . . . . . . . . . . 3 . . . . . . . . . Allies Hacked 1 | . . . . . . . . . . . . . . . . 1 . . . . . Hacks Repelled . | . . . . . . . . . . . . . . . . . . . . . . Allies | -11 -10 -10 -8 -7 -7 -7 -7 -7 -7 -6 -6 -6 -6 -6 -6 -5 -4 -4 -4 -4 -3 -------- Run | Yrd Mat Sub Mat Fac Was Fac Low Low Zio Pro Fac Ext Cet Arc Hub Fac Fac Upp Upp War Pro Total Allies 37 | . . . . . . . . . 4 . 3 17 . . 4 9 . . . . . Largest Group 9 | . . . . . . . . . 4 4 3 9 6 4 8 3 . . . . . Highest-Rated Group 496 | . . . . . . . . . 156 156 187 496 285 227 461 210 . . . . . Highest-Rated Ally 85 | . . . . . . . . . 40 40 85 85 85 85 85 85 . . . . . Zionite Dispatches 11 | . . . . . . . . . . . 2 4 . . 2 3 . . . . . Heavy 2 | . . . . . . . . . . . . 1 . . 1 . . . . . . Light 4 | . . . . . . . . . . . . 1 . . . 3 . . . . . Recon 1 | . . . . . . . . . . . 1 . . . . . . . . . . Fire 2 | . . . . . . . . . . . . 2 . . . . . . . . . Hacker 1 | . . . . . . . . . . . 1 . . . . . . . . . . Demo 1 | . . . . . . . . . . . . . . . 1 . . . . . . Total Orders 2 | . . . . . . . . . . . 2 . . . . . . . . . . EXPLORE 2 | . . . . . . . . . . . 2 . . . . . . . . . . Ally Attacks 276 | . . . . . . . . . . 19 19 110 26 16 29 57 . . . . . Total Damage 9941 | . . . . . . . . . . 740 751 2823 1277 858 2403 1089 . . . . . Kills 62 | . . . . . . . . . . 5 9 19 5 5 13 6 . . . . . Allies Corrupted 5 | . . . . . . . . . . . 1 . . . 2 2 . . . . . Allies Melted . | . . . . . . . . . . . . . . . . . . . . . . Intel | -11 -10 -10 -8 -7 -7 -7 -7 -7 -7 -6 -6 -6 -6 -6 -6 -5 -4 -4 -4 -4 -3 ------- Run | Yrd Mat Sub Mat Fac Was Fac Low Low Zio Pro Fac Ext Cet Arc Hub Fac Fac Upp Upp War Pro Active Infowar (turns) 8034 | 14 316 26 396 981 51 56 608 212 658 1043 324 987 120 124 . 739 334 901 144 . . Optics 1080 | . . 26 396 . . . . . . . . 414 120 124 . . . . . . . Sensors 6964 | . . . . 981 51 56 608 212 658 1043 324 987 120 21 . 524 334 901 144 . . IFF 215 | . . . . . . . . . . . . . . . . 215 . . . . . Seismic 522 | 14 316 . . . . . . . . . . . . . . . 192 . . . . Jamming 7 | . . . . 7 . . . . . . . . . . . . . . . . . ECM 718 | . . . . . . . . . . . . . . . . 373 327 18 . . . Robot Analysis Total . | . . . . . . . . . . . . . . . . . . . . . . Derelict Logs Recovered 5 | . . . . . . . . 1 2 1 . . . . . . . 1 . . . Drone Launches 2 | . . . . . . . . . . . 2 . . . . . . . . . . Drone Recoveries 1 | . . . . . . . . . . . 1 . . . . . . . . . . Zionite Intel Received 6 | . . . . . . . . . . . 2 . . . 1 2 1 . . . . Main Access 1 | . . . . . . . . . . . . . . . . . 1 . . . . Guard Positions 1 | . . . . . . . . . . . . . . . 1 . . . . . . Prototype Stockpiles 2 | . . . . . . . . . . . 1 . . . . 1 . . . . . Prototype Schematics 1 | . . . . . . . . . . . 1 . . . . . . . . . . Depthwide Sectors/-1 1 | . . . . . . . . . . . . . . . . 1 . . . . . Exploration | -11 -10 -10 -8 -7 -7 -7 -7 -7 -7 -6 -6 -6 -6 -6 -6 -5 -4 -4 -4 -4 -3 ------------- Run | Yrd Mat Sub Mat Fac Was Fac Low Low Zio Pro Fac Ext Cet Arc Hub Fac Fac Upp Upp War Pro Turns Passed 12908 | 252 532 1229 755 2048 51 56 608 212 661 1049 489 987 124 199 201 1158 334 901 279 508 275 Spaces Moved 13422 | 130 144 963 346 2000 123 136 1394 530 1105 1189 466 1061 114 256 167 888 338 583 389 798 302 Core 18 | 16 . . . . . . . . . . . . . . . . . . . . 2 Treads 1090 | 114 144 123 85 624 . . . . . . . . . . . . . . . . . Legs . | . . . . . . . . . . . . . . . . . . . . . . Wheels 1101 | . . 840 261 . . . . . . . . . . . . . . . . . . Hover 11213 | . . . . 1376 123 136 1394 530 1105 1189 466 1061 114 256 167 888 338 583 389 798 300 Flight . | . . . . . . . . . . . . . . . . . . . . . . Fastest Speed 40 | 50 160 95 95 40 40 40 40 40 40 40 45 42 42 44 44 44 53 104 58 58 58 Average Speed 66 | 146 227 115 114 77 40 40 40 40 40 55 54 44 52 47 44 74 68 104 61 58 70 Slowest Speed 320 | 160 320 240 156 161 40 40 40 40 40 120 116 104 115 52 44 161 146 109 109 108 200 Overloaded Moves . | . . . . . . . . . . . . . . . . . . . . . . Propulsion Burnouts . | . . . . . . . . . . . . . . . . . . . . . . Robots Hopped . | . . . . . . . . . . . . . . . . . . . . . . Potential Cave-ins 7 | . . . . . . . . . . . . 6 . . 1 . . . . . . Cave-ins Triggered . | . . . . . . . . . . . . . . . . . . . . . . Exploration Rate (%) 53 | 6 35 32 33 49 80 4 98 61 86 94 13 88 62 90 30 25 9 76 61 83 53 Regions Visited 21 Branch Regions 13 Pre-discovered Areas 11 | . . 1 . . . . . . 1 1 . . . . . 6 . 1 . 1 . Known Exits Taken 14 | . . . 1 . . 1 1 1 1 1 1 1 1 . 1 1 1 . 1 1 . Unknown Exits Taken 5 | 1 1 1 . . . . . . . . . . . 1 . . . 1 . . . Scrap Searched 18 | . . 3 . . . . 2 3 3 2 . . . . . . . 2 1 . 2 Spaces Dug 89 | . . 5 14 35 . . . . . . 3 4 . . 2 7 13 6 . . . Terrain Destroyed 795 | . 18 7 37 35 . . 11 . . 58 33 271 5 . 195 15 29 9 1 . 71 Melee 87 | . . 5 14 35 . . . . . . 3 4 . . 2 7 13 4 . . . Projectile 49 | . . . 3 . . . . . . . . 12 5 . 5 8 2 5 1 . 8 AOE 659 | . 18 2 20 . . . 11 . . 58 30 255 . . 188 . 14 . . . 63 Terrain Rammed . | . . . . . . . . . . . . . . . . . . . . . . Walls Destroyed . | . . . . . . . . . . . . . . . . . . . . . . Machines Disabled . | . . . . . . . . . . . . . . . . . . . . . . Actions | -11 -10 -10 -8 -7 -7 -7 -7 -7 -7 -6 -6 -6 -6 -6 -6 -5 -4 -4 -4 -4 -3 --------- Run | Yrd Mat Sub Mat Fac Was Fac Low Low Zio Pro Fac Ext Cet Arc Hub Fac Fac Upp Upp War Pro Total 16488 | 165 315 1029 575 2365 124 137 1423 529 1324 1531 647 1443 159 311 266 1283 406 858 422 843 333 Wait 1806 | . 130 1 51 179 2 . 1 . 203 295 93 201 21 20 71 220 29 260 2 27 . Move 13402 | 129 143 962 345 2000 122 135 1393 529 1104 1188 465 1060 113 255 166 887 337 582 388 797 302 Hop . | . . . . . . . . . . . . . . . . . . . . . . Pick Up 155 | 13 7 13 34 19 . . 1 . 4 . 11 9 . 3 4 26 2 1 3 5 . Fast Attach 63 | . . 1 1 11 . . . . 3 . 5 4 2 9 1 7 6 2 4 2 5 Attach 110 | 7 5 6 18 5 . . . . 1 4 17 6 2 1 3 18 . 1 10 2 4 Detach 40 | . . . 4 1 . . . . 1 3 9 1 1 3 . 5 . . 8 2 2 Swap 118 | . 5 9 14 28 . 1 5 . . 9 1 26 3 1 1 12 2 . . 1 . Drop 102 | 2 1 9 9 31 . 1 2 . 7 . 3 10 1 4 3 7 4 . 2 6 . Fire 439 | 14 23 22 83 49 . . 21 . . 23 21 77 15 4 12 35 10 8 4 . 18 Melee 197 | . . 6 15 42 . . . . 1 9 22 26 1 11 5 36 16 4 1 . 2 Ram . | . . . . . . . . . . . . . . . . . . . . . . Kick . | . . . . . . . . . . . . . . . . . . . . . . Crush 2 | . 1 . 1 . . . . . . . . . . . . . . . . . . Escape Stasis 48 | . . . . . . . . . . . . 18 . . . 30 . . . . . Rewire 6 | . . . . . . . . . . . . 5 . . . . . . . 1 . Trap . | . . . . . . . . . . . . . . . . . . . . . . Miscellaneous . | . . . . . . . . . . . . . . . . . . . . . . Route ------- -11/Scrapyard -10/Materials -10/Subcaves -8/Materials (discovered 3 exits: *Fac x3) -7/Factory (discovered 4 exits: *Fac x4) -7/Waste -7/Factory -7/Lower Caves -7/Lower Caves -7/Zion -6/Proximity Caves -6/Factory -6/Extension (discovered 3 exits: *Fac x2 / *Cet) -6/Cetus -6/Archives (discovered 3 exits: *Fac / *Hub x2) -6/Hub_04(d) (discovered 2 exits: *Fac x2) -5/Factory -4/Factory (discovered 5 exits: Res x4 / *Upp) -4/Upper Caves -4/Upper Caves (discovered 2 exits: *Res / *War) -4/Warlord -3/Proximity Caves History --------- Turn | Location | Event 12 | -11/Scrapyard | Discovered new exit (range 16) 253 | -11/Scrapyard | Entered Materials 318 | -10/Materials | Build established: Mutant 620 | -10/Materials | Lost 3 parts (1p1u1w) 760 | -10/Materials | Discovered new exit (range 9) 785 | -10/Materials | Entered Subcaves 1166 | -10/Subcaves | Core integrity fell below 50% 1259 | -10/Subcaves | Shifting Twisted Machinery released Sub. Laser 1419 | -10/Subcaves | Learned location of Zion (-7) 1419 | -10/Subcaves | Met a Zionite searching for "candidates" 1710 | -10/Subcaves | Shifting Twisted Machinery released Mak. Thermal Plating 1861 | -10/Subcaves | Discovered new exit (range 11) 1864 | -10/Subcaves | Shifting Twisted Machinery released Sub. Beam Cannon 2014 | -10/Subcaves | Entered Materials 2014 | -8/Materials | Evolved 4 slots: Propulsion x2, Utility x2 2030 | -8/Materials | Identified exit to Factory 2056 | -8/Materials | Garrison activated, responded to threat 2320 | -8/Materials | Central database locked down 2446 | -8/Materials | Build established: Scavenger-Mutant 2561 | -8/Materials | Core integrity fell below 50% 2605 | -8/Materials | Lost 8 parts (1p4n1u2w) 2769 | -8/Materials | Entered Factory 2769 | -7/Factory | Evolved 2 slots: Propulsion x1, Weapon x1 3407 | -7/Factory | Build established: Scavenger-Gunner 4017 | -7/Factory | Discovered new exit (range 6) 4019 | -7/Factory | Identified exit to Factory 4064 | -7/Factory | Discovered exit to Factory (range 11) 4064 | -7/Factory | Discovered exit to Factory (range 9) 4424 | -7/Factory | Central database locked down 4441 | -7/Factory | Build established: Mutant 4817 | -7/Factory | Manually triggered Chute Trap 4817 | -7/Factory | Sucked down chute 4817 | -7/Factory | Entered Waste 4828 | -7/Waste | Spotted C-40 Crusher 4829 | -7/Waste | Spotted C-40 Crusher 4832 | -7/Waste | EMP discharged 4832 | -7/Waste | System corruption reached 10% 4838 | -7/Waste | Spotted C-40 Crusher 4840 | -7/Waste | Spotted C-40 Crusher 4842 | -7/Waste | Spotted C-40 Crusher 4851 | -7/Waste | Spotted C-40 Crusher 4860 | -7/Waste | Discovered new exit (range 11) 4868 | -7/Waste | Identified exit to Factory 4868 | -7/Waste | Entered Factory 4904 | -7/Factory | Discovered new exit (range 6) 4906 | -7/Factory | Identified exit to Lower Caves 4924 | -7/Factory | Entered Lower Caves 4927 | -7/Lower Caves | Attracted the attention of an 0b10 outpost 5193 | -7/Lower Caves | Found DCF Scrap (12 items) 5434 | -7/Lower Caves | Entered a destroyed Warlord outpost 5465 | -7/Lower Caves | Discovered new exit (range 9) 5468 | -7/Lower Caves | Identified exit to Lower Caves 5532 | -7/Lower Caves | Entered another Lower Caves area 5632 | -7/Lower Caves | Spotted B-75 Beast 5641 | -7/Lower Caves | Learned Factory security intel 5729 | -7/Lower Caves | Discovered new exit (range 8) 5733 | -7/Lower Caves | Identified exit to Zion 5744 | -7/Lower Caves | Entered Zion 5769 | -7/Zion | System corruption cleaned by Quarantine Array 5783 | -7/Zion | Found Prototype Device 5787 | -7/Zion | Identified Bomb Factory No. 2 5806 | -7/Zion | Discovered new exit (range 13) 5929 | -7/Zion | Learned Factory machine intel 5943 | -7/Zion | Found Unknown Piercing Weapon 6039 | -7/Zion | Received a visual enhancement algorithm 6040 | -7/Zion | Ran a visual enhancement algorithm 6092 | -7/Zion | Met Imprinter 6098 | -7/Zion | Imprinted 6100 | -7/Zion | Declared Zion's savior 6214 | -7/Zion | Identified exit to Proximity Caves 6405 | -7/Zion | Entered Proximity Caves 6405 | -6/Proximity Caves | Accompanied by 4 allies 6562 | -6/Proximity Caves | Spotter reported a threat 6570 | -6/Proximity Caves | Spotter reported a threat 6615 | -6/Proximity Caves | Spotter reported a threat 6686 | -6/Proximity Caves | Identified CR-A16's Pointy Stick 6688 | -6/Proximity Caves | Spotted B-75 Beast 6707 | -6/Proximity Caves | Revealed the true nature of CR-A16's Pointy Stick 6712 | -6/Proximity Caves | Destroyed B-75 Beast 6740 | -6/Proximity Caves | Lost 6 parts (1p4n1u) 6741 | -6/Proximity Caves | Spotter reported a threat 7129 | -6/Proximity Caves | Received a Behemoth hack from an annoying Tinkerer 7367 | -6/Proximity Caves | Attracted the attention of an 0b10 checkpoint 7408 | -6/Proximity Caves | Discovered exit to Factory (range 15) 7454 | -6/Proximity Caves | Entered Factory 7454 | -6/Factory | Evolved 2 slots: Utility x2 7456 | -6/Factory | Loaded intel: 257 machine locations 7470 | -6/Factory | Discovered new exit (range 16) 7544 | -6/Factory | Retrieved Zion intel report: Prototype Schematics 7545 | -6/Factory | Zion Recon squad teleported in 7571 | -6/Factory | Spotted B-75 Beast 7575 | -6/Factory | Befriended a Behemoth using the annoying Tinkerer's hack 7688 | -6/Factory | Retrieved Zion intel report: Prototype Stockpiles 7704 | -6/Factory | Zion Hacker squad teleported in 7804 | -6/Factory | Search patrols dispatched 7868 | -6/Factory | Identified exit to Extension 7943 | -6/Factory | Entered Extension 7943 | -6/Extension | Accompanied by 2 allies 8092 | -6/Extension | Lost 3 allies 8165 | -6/Extension | Zion Light squad teleported in 8167 | -6/Extension | Rescued a captive Derelict 8170 | -6/Extension | Rescued a captive Derelict 8208 | -6/Extension | Zion Fire squad teleported in 8369 | -6/Extension | Zion Heavy squad teleported in 8582 | -6/Extension | Spotted B-75 Beast 8595 | -6/Extension | Allies destroyed B-75 Beast 8595 | -6/Extension | Spotted B-75 Beast 8608 | -6/Extension | Destroyed B-75 Beast 8650 | -6/Extension | Lost 4 allies 8725 | -6/Extension | Discovered new exit (range 3) 8725 | -6/Extension | Identified exit to Factory 8743 | -6/Extension | Disrupted transfer network 8748 | -6/Extension | Zion Fire squad teleported in 8891 | -6/Extension | Discovered exit to Factory (range 10) 8891 | -6/Extension | Discovered new exit (range 6) 8900 | -6/Extension | Identified exit to Cetus 8924 | -6/Extension | Build established: Messiah-Scout 8930 | -6/Extension | Entered Cetus 8930 | -6/Cetus | Accompanied by 6 allies 8938 | -6/Cetus | Spotted Cetus Guard 8938 | -6/Cetus | Spotted Cetus Guard 8941 | -6/Cetus | Spotted Cetus Guard 8950 | -6/Cetus | Spotted Cetus Guard 8958 | -6/Cetus | Allies destroyed Cetus Guard 8960 | -6/Cetus | Allies destroyed Cetus Guard 8960 | -6/Cetus | Allies destroyed Cetus Guard 8966 | -6/Cetus | Allies destroyed Cetus Guard 9024 | -6/Cetus | Discovered new exit (range 18) 9048 | -6/Cetus | Identified exit to Archives 9054 | -6/Cetus | Entered Archives 9054 | -6/Archives | Accompanied by 4 allies 9063 | -6/Archives | Unable to access archive contents 9067 | -6/Archives | Discovered new exit (range 18) 9070 | -6/Archives | Discovered new exit (range 18) 9071 | -6/Archives | Unable to access archive contents 9106 | -6/Archives | Lost 4 parts (1p1n2u) 9172 | -6/Archives | Discovered exit to Factory (range 14) 9253 | -6/Archives | Entered Hub_04(d) 9253 | -6/Hub_04(d) | Accompanied by 4 allies 9286 | -6/Hub_04(d) | Retrieved Zion intel report: Guard Positions 9291 | -6/Hub_04(d) | Zion Heavy squad teleported in 9377 | -6/Hub_04(d) | Build established: Messiah-Mutant 9388 | -6/Hub_04(d) | Zion Demo squad teleported in 9398 | -6/Hub_04(d) | Discovered exit to Factory (range 9) 9408 | -6/Hub_04(d) | Discovered exit to Factory (range 16) 9439 | -6/Hub_04(d) | Network Hub disabled 9448 | -6/Hub_04(d) | Found Prototype Protection 9448 | -6/Hub_04(d) | Identified Zio. Weapon Casing 9454 | -6/Hub_04(d) | Entered Factory 9454 | -5/Factory | Accompanied by 2 allies 9454 | -5/Factory | Evolved 2 slots: Power x1, Utility x1 9465 | -5/Factory | Murdered 3 allies 9616 | -5/Factory | Fabricated Exp. Targeting Computer? 9630 | -5/Factory | Zion Light squad teleported in 9768 | -5/Factory | Lost 3 allies 9789 | -5/Factory | Lost 3 parts (1n2u) 9840 | -5/Factory | Zion Light squad teleported in 9885 | -5/Factory | Lost 3 allies 9919 | -5/Factory | Lost 8 parts (2p3n2u1w) 10041 | -5/Factory | Lost 3 parts (1n1u1w) 10061 | -5/Factory | Repaired Centrium Medium Armor Plating 10192 | -5/Factory | Retrieved Zion intel report: Depthwide Sectors/-4 10398 | -5/Factory | Zion Light squad teleported in 10408 | -5/Factory | Garrison activated, responded to threat 10464 | -5/Factory | Found Powered Armor 10494 | -5/Factory | Retrieved Zion intel report: Prototype Stockpiles 10572 | -5/Factory | Spotted B-75 Beast 10578 | -5/Factory | Discovered new exit (range 12) 10582 | -5/Factory | System corruption reached 10% 10587 | -5/Factory | Destroyed B-75 Beast 10612 | -5/Factory | Identified exit to Factory 10612 | -5/Factory | Entered another Factory area 10612 | -4/Factory | Evolved 2 slots: Propulsion x1, Utility x1 10620 | -4/Factory | Lost 3 allies 10704 | -4/Factory | Repaired Gyrokinetic Inverter 10827 | -4/Factory | Spotted B-86 Titan 10829 | -4/Factory | Destroyed B-86 Titan 10833 | -4/Factory | Discovered new exit (range 15) 10884 | -4/Factory | Lost 3 parts (2n1u) 10938 | -4/Factory | Retrieved Zion intel report: Main Access 10938 | -4/Factory | Identified exit to Research 10945 | -4/Factory | Identified exit to Upper Caves 10946 | -4/Factory | Entered Upper Caves 11116 | -4/Upper Caves | Build established: Scavenger-Mutant 11552 | -4/Upper Caves | Learned location of Testing (-3) 11835 | -4/Upper Caves | Attracted the attention of an 0b10 outpost 11840 | -4/Upper Caves | Discovered new exit (range 9) 11847 | -4/Upper Caves | Entered another Upper Caves area 11878 | -4/Upper Caves | Discovered exit to Research (range 12) 11958 | -4/Upper Caves | Ambushed by research squad 12022 | -4/Upper Caves | Lost 4 parts (1p2u1w) 12089 | -4/Upper Caves | Spotted B-86 Titan 12093 | -4/Upper Caves | Destroyed B-86 Titan 12109 | -4/Upper Caves | Discovered new exit (range 12) 12116 | -4/Upper Caves | Identified exit to Warlord 12126 | -4/Upper Caves | Entered Warlord 12147 | -4/Warlord | Discovered new exit (range 14) 12156 | -4/Warlord | Identified exit to Proximity Caves 12175 | -4/Warlord | System corruption cleaned by Quarantine Array 12304 | -4/Warlord | Received a Watcher feed algorithm from an ecstatic Tinkerer 12327 | -4/Warlord | Learned location of Command (-1) 12328 | -4/Warlord | Learned 4 Armory zone layouts 12328 | -4/Warlord | Learned 4 Access zone layouts 12328 | -4/Warlord | Learned 4 Quarantine zone layouts 12328 | -4/Warlord | Learned Testing security intel 12328 | -4/Warlord | Learned Factory scanalyzer intel 12406 | -4/Warlord | Rebuked by Warlord 12431 | -4/Warlord | Warlord's base attacked by MAIN.C 12487 | -4/Warlord | Found Prototype Special Weapon 12487 | -4/Warlord | Identified RU-N14's Throwing Claymores v3 12490 | -4/Warlord | Found RU-N14's Throwing Claymores v3 12494 | -4/Warlord | Found RU-N14's Throwing Claymores v3 12501 | -4/Warlord | Found RU-N14's Throwing Claymores v3 12504 | -4/Warlord | Found RU-N14's Throwing Claymores v3 12531 | -4/Warlord | Found Prototype Device 12531 | -4/Warlord | Identified Minesniffer Drone Bay 12618 | -4/Warlord | Opened side exit 12634 | -4/Warlord | Entered Proximity Caves 12789 | -3/Proximity Caves | Attracted the attention of an 0b10 checkpoint 12791 | -3/Proximity Caves | Attracted the attention of an 0b10 outpost 12834 | -3/Proximity Caves | Spotted B-86 Titan 12835 | -3/Proximity Caves | Entered a huge 0b10 base via the front door 12843 | -3/Proximity Caves | Destroyed B-86 Titan 12861 | -3/Proximity Caves | Core integrity fell below 50% 12874 | -3/Proximity Caves | Destroyed 8 combat bots 12892 | -3/Proximity Caves | Core integrity fell below 20% 12909 | -3/Proximity Caves | Destroyed by S-43 Plague with Heavy Machine Gun Last Messages --------------- 12877_ Adv. Targeting Computer destroyed. 12878_ Base Generator explodes. 12878_ Penetrated by Slug. 12890_ ECM Suite destroyed. 12891_ Penetrated by Slug. 12891_ Med. Storage Unit destroyed. 12891_ Slug penetrates Y-72 Warden. 12892_ Acquired Imp. Plasma Cutter. 12894_ Penetrated by Slug. 12894_ Imp. Plasma Cutter destroyed. 12895_ Acquired RU-N14's Throwing Claymores v3. 12903_ Connecting with Door Terminal... >>Open(Door) Sealed Heavy Doors opened. 12904_ S-43 Plague springs to life. 12905_ S-43 Plague Lgt. Antimatter Reactor severed. 12905_ S-43 Plague destroyed. 12906_ Storage Shell breached. 12906_ Gyrokinetic Inverter destroyed. Map ----- +----------------------------------------------------+ | ?????????????????????????????????????????????? | | ?????????????????????????????????????????????? | | ?????????????????????????????????????????????? | | ?????????????????????????????????????????????? | | ?????????????????????????????????????????????? | | ?????????????????????????????????????????????? | | ?????????????????????????????????????????????? | | ?????????????????????????????????????????????? | | ?????????????????????????????????????????????? | | ?????????????????????????????????????????????? | | ?????????????????????????????????????????????? | | ?????????????????????????????????????????????? | | ?????????????????????????????????????????????? | | ?????????????????????????????????????????????? | | ?????????????????????????????????????????????? | | ?????????????????????????????????????????????? | | ??????????????????########???????????????????? | | ??????????????????#% "???????????????????? | | ??????????????????#s "???????????????????? | | ??????????????????#s "???????????????????? | | ???????????##+##### ""??????????????????? | | ??????????? s ??????????????????? | | ?????????? ???????????????????? | | ???????????? ???????????????????? | | ?????????????#### """#????????????????? | | ?????????????#Y @![#????????????????? | | ?????????????#Y # l "![#????????????????? | | ??????????????????# "![#????????????????? | | ????# ????????????#### ##?##????????????????? | | ????# ??????????????# T#???????????????????? | | ????# ??????????????# ##???????????????????? | | ????# ??????????????# #????????????????????? | | ##### ############### #????????????????????? | | # # #????????????????????? | | # # #????????????????????? | | # # #????????????????????? | | # # #????????????????????? | | ###//##### #????????????????????? | | #????????????????????? | | ] #????????????????????? | | ####### ##+#####????????????????? | | #?????# # #????????????????? | | #?????# # #????????????????? | | #?????# # #????????????????? | | #?????# # #????????????????? | | ##### ## ###?????# # #????????????????? | | ????# ####???????# # #????????????????? | | ##### #??????????# # #????????????????? | | #??????????# ########????????????????? | | #??????????# #???????????????????????? | +----------------------------------------------------+ Best States ------------- Heat Dissipation 74 Energy Generation 37 Energy Capacity 315 Matter Stores 300 Matter Capacity 300 Sight Range 21 Robot Scan Range 15 Terrain Scan Density 10 ECM Strength 1 Jamming Range 12 Power Amplification 20 Base Temperature (-) 200 Armor Coverage 800 Weapon Shielding 100 Evasion (%) 65 Targeting Accuracy 8 Core Analysis 6 Recoil Reduction 5 Offensive Hacking 36 Defensive Hacking 12 Item Schematics ----------------- Transmission Jammer | -7/Zion | Archive Plasma Rifle | -7/Zion | Archive Imp. Salvage Targeting Computer | -7/Zion | Archive Phase Shifter | -7/Zion | Archive Arc Projector | -7/Zion | Archive Imp. Thermal Generator | -7/Zion | Archive Imp. Field Recycling Unit | -7/Zion | Archive Imp. Focal Shield | -7/Zion | Archive Hvy. Phase Cannon | -7/Zion | Archive Flak Gun | -7/Zion | Archive Phase Cannon | -7/Zion | Archive Med. Insulated Plating | -7/Zion | Archive Coil Gun | -7/Zion | Archive Angular Momentum Engine | -7/Zion | Archive System Restoration Module | -7/Zion | Archive Biomechanical Wings | -6/Factory | Z-intel Prc. Assault Rifle | -6/Factory | Z-intel Hpw. Field Laser | -6/Factory | Z-intel Cld. Plasma Cannon | -6/Factory | Z-intel Imp. Airjet | -6/Factory | Z-intel Cold Fusion Reactor | -6/Factory | Z-intel Cld. VTOL Module | -6/Factory | Z-intel Antimatter Cannon | -6/Factory | Z-intel Thermal Defense Suite | -6/Factory | Z-intel Exp. Targeting Computer | -6/Factory | Z-intel Shock Maul | -6/Factory | Z-intel Force Rifle | -6/Factory | Z-intel Robot Schematics ------------------ T-07 Excavator | -7/Zion | Archive L-41 Fighter | -7/Zion | Archive B-48 Gladiator | -7/Zion | Archive X-82 Rainmaker | -7/Zion | Archive Fabricated ------------ Exp. Targeting Computer | x1 | -5/Factory Repaired ---------- Centrium Medium Armor Plating | 7% | -5/Factory Gyrokinetic Inverter | 26% | -4/Factory Studied --------- Lgt. Treads | -8/Materials | Hacked Airjet | -7/Factory | Hacked Missile Launcher | -7/Factory | Hacked Gravmag System | -7/Factory | Hacked Lgt. Nuclear Core | -7/Factory | Hacked Alien Tech Used ----------------- None Achievements -------------- A Powerful Ally? Adventurer Collateral Damage Dramatic Entrance Friend Of Zion Giant Slayer Not Today, Chutes The Robot, The Myth, The Legend Wheee! Woof! Challenges ------------ None Game ------ Seed ContainmentComponentFist Manual? 0 Play Time 03:31:22 Cumulative 38.9 hours Start 2026.08.31 @ 12:25:33 End 2026.09.01 @ 11:42:48 Sessions 3 Manual Loads 0 Difficulty Rogue Special Mode None Game No. 43 Rogue 40 Adventurer 3 Explorer 0 Win Type - Total 1 Types 1/0/0/0/0/0/0/0/0/0 Lore% 34 Gallery% 32 Achievement% 32 Wizard Run 0 Options --------- Layout 1 ASCII 0 Keyboard 0 Movement Mouse Keybinds 0 Fullscreen 1 Font 32/SmallcapsGlow Map View 50x35 Zoom Use 0% Tactical HUD 1 Map Filters NONE Filters NONE Steam 1 RUN: fca7fa60-a951-4392-b3dd-fba7181adb3d